bitfinex/quotes_ETHUSD_20251108
["timestamp","ask_amount","ask_price","bid_price","bid_amount"]
[1762614981440,0.4907,3407.1,3406.8,2.93530585]
[1762614981441,0.4907,3407.1,3406.8,2.93526269]
[1762614981608,0.5556,3406.9,3406.8,2.93530585]
[1762614981803,0.5556,3406.9,3406.7,2.93534175]
[1762614982009,0.4907,3406.7,3406.6,2.93541558]
[1762614982241,0.4907,3406.7,3406.6,3.48731958]
[1762614982445,0.4907,3406.7,3406.6,3.08181558]
[1762614982943,0.9863,3406.7,3406.6,0.1464]
[1762614984644,3.92169202,3406.7,3406.6,0.1464]
[1762614984847,4.61385758,3406.7,3406.6,0.1464]
[1762614985045,1.67846556,3406.7,3406.4,0.1464]
[1762614985218,2.93556436,3406.5,3406.4,0.1464]
[1762614985419,0.9863,3406.5,3406.4,0.1464]
[1762614986666,3.92186436,3406.5,3406.4,0.1464]
[1762614986970,0.9863,3406.5,3406.4,0.1464]
[1762614987451,3.92186436,3406.5,3406.4,0.1464]
[1762614987866,2.93565054,3406.4,3406.3,0.001]
[1762614988040,5.18166254,3406.4,3406.3,0.001]
[1762614989523,5.32806254,3406.4,3406.3,0.001]
[1762614991656,4.19553491,3406.2,3406.1,0.005]
[1762614991856,1.729512,3406.2,3406.1,0.005]
[1762614992049,2.195012,3406.2,3406.1,0.005]
[1762614992247,5.52850722,3406.2,3406.1,0.005]
[1762614993537,2.59268431,3406.2,3406.1,0.005]
[1762614993735,2.195012,3406.2,3406.1,0.005]
[1762614993924,5.13083491,3406.2,3406.1,0.005]
[1762614994124,2.195012,3406.2,3406.1,0.005]
[1762614994425,5.13083491,3406.2,3406.1,0.005]
[1762614996544,5.13083491,3406.2,3406.1,0.006]
[1762615004548,6.16565455,3406.2,3406.1,1e-08]
[1762615004769,4.19587971,3405.8,3405.7,0.001]
[1762615004975,4.85677971,3405.8,3405.7,0.001]
[1762615005179,4.34236592,3405.7,3405.6,0.001]
[1762615005365,5.8911467,3405.7,3405.6,0.001]
[1762615006600,5.8911467,3405.7,3404.6,0.001]
[1762615006601,4.19639706,3405.2,3404.6,0.001]
[1762615006810,5.28857784,3405.2,3404.6,0.001]
[1762615007102,5.11579706,3405.2,3404.6,0.001]
[1762615007305,5.74566065,3405.2,3404.6,0.001]
[1762615007900,5.11579706,3405.2,3404.6,0.001]
[1762615008103,5.57652081,3405.2,3404.6,0.001]
[1762615008302,5.74584973,3405.2,3404.6,0.001]
[1762615008504,2.80916467,3405.2,3404.6,0.001]
[1762615008660,2.179112,3405.2,3404.6,0.001]
[1762615008856,0.1464,3405.2,3404.8,2.93697985]
[1762615009060,0.1464,3405.2,3404.8,2.93699446]
[1762615009309,0.6092,3405.2,3404.8,2.93699446]
[1762615009508,3.13428004,3405.8,3405.1,0.1969]
[1762615009509,0.1981,3405.8,3405.1,0.1969]
[1762615009701,0.1464,3405.4,3405.1,0.1969]
[1762615009992,0.1464,3405.4,3405.1,0.005]
[1762615010183,0.4628,3405.2,3405.1,0.005]
[1762615010954,0.603,3405.4,3405.1,0.005]
[1762615011155,0.1464,3405.4,3405.1,0.005]
[1762615011385,0.1464,3405.4,3405.1,0.05]
[1762615011581,0.1464,3405.6,3405.3,0.1919]
[1762615011781,0.1464,3405.6,3405.1,0.05]
[1762615011997,0.4566,3405.5,3405.1,0.005]
[1762615013596,1.716312,3405.5,3405.1,0.005]
[1762615014711,3.39304636,3405.5,3405.1,0.006]
[1762615015318,0.4628,3405.2,3405.1,0.006]
[1762615018476,3.85608506,3405.2,3405.1,0.006]
[1762615018799,5.11579706,3405.2,3405.1,0.006]
[1762615019569,2.179112,3405.2,3405.1,0.006]
[1762615019872,5.11579706,3405.2,3405.1,0.006]
[1762615020400,5.74886119,3405.2,3405.1,0.006]
[1762615020604,5.11579706,3405.2,3405.1,0.006]
[1762615020919,2.81218019,3405.2,3405.1,0.006]
[1762615021124,1.722512,3405.2,3405.1,0.006]
[1762615021268,2.35565837,3405.2,3405.1,0.006]
[1762615021916,1.722512,3405.2,3405.1,0.006]
[1762615022103,2.208512,3405.2,3405.1,0.006]
[1762615022670,5.14519706,3405.2,3405.1,0.006]
[1762615022907,5.77848549,3405.2,3405.1,0.006]
[1762615023466,5.14519706,3405.2,3405.1,0.006]
[1762615023728,5.77864867,3405.2,3405.1,0.006]
[1762615024010,2.93703007,3404.8,3404.7,0.001]
[1762615024178,5.32749368,3404.8,3404.7,0.001]
[1762615024501,5.32749368,3404.8,3404.6,0.001]
[1762615024502,4.34322833,3404.7,3404.6,0.001]
[1762615024706,5.95997994,3404.7,3404.6,0.001]
[1762615024894,7.0158943,3404.7,3404.6,0.001]
[1762615025285,7.32130908,3404.7,3404.6,0.001]
[1762615026005,7.0158943,3404.7,3404.6,0.001]
[1762615026367,1.13075161,3404.7,3404.6,0.001]
[1762615026567,2.10800158,3405.5,3404.6,0.001]
[1762615026568,0.1464,3405.0,3404.6,0.3888]
[1762615026781,0.1464,3405.2,3404.9,0.1939]
[1762615027003,0.1464,3405.2,3404.6,2.93815134]
[1762615027004,0.77912712,3405.2,3404.6,0.001]
[1762615027203,2.93691257,3405.0,3404.6,0.001]
[1762615027406,4.68249279,3405.1,3404.6,0.001]
[1762615027706,1.8924833,3405.0,3404.6,0.001]
[1762615027911,1.259712,3405.0,3404.6,0.001]
[1762615028413,0.1464,3405.2,3404.6,0.001]
[1762615028705,1.259712,3404.8,3404.6,0.001]
[1762615028907,0.486,3405.0,3404.6,0.001]
[1762615029210,0.4973,3404.7,3404.6,0.001]
[1762615029708,1.745712,3404.9,3404.6,0.001]
[1762615030113,1.757012,3404.7,3404.6,0.001]
[1762615030410,5.32710598,3404.7,3404.6,0.001]
[1762615030576,5.81310598,3404.7,3404.6,0.001]
[1762615033609,6.60421095,3404.7,3404.6,0.001]
[1762615035683,5.81310598,3404.7,3404.6,0.001]
[1762615036022,6.41361116,3404.7,3404.6,0.001]
[1762615036206,7.20489221,3404.7,3404.6,0.001]
[1762615036817,6.41361116,3404.7,3404.6,0.001]
[1762615037117,6.53133664,3404.7,3404.6,0.001]
[1762615037307,7.32251325,3404.7,3404.6,0.001]
[1762615037824,6.53133664,3404.7,3404.6,0.001]
[1762615038595,6.53133664,3404.7,3404.3,0.001]
[1762615038596,4.19708716,3404.4,3404.3,1e-08]
[1762615038919,5.81026546,3404.4,3404.3,1e-08]
[1762615039134,6.29626546,3404.4,3404.3,1e-08]
[1762615039686,6.70176946,3404.4,3404.3,1e-08]
[1762615039881,7.16260473,3404.4,3404.3,1e-08]
[1762615040322,4.60276373,3404.2,3404.1,1e-08]
[1762615040626,7.387231,3404.2,3404.1,1e-08]
[1762615040781,6.81954656,3404.2,3404.1,1e-08]
[1762615041285,5.29889525,3403.7,3403.6,1e-08]
[1762615041481,13.79073013,3403.7,3403.6,1e-08]
[1762615041735,14.27673013,3403.7,3403.6,1e-08]
[1762615041891,14.75963078,3403.7,3403.6,1e-08]
[1762615042326,13.70650853,3403.7,3403.6,1e-08]
[1762615042618,15.28619191,3403.7,3403.6,1e-08]
[1762615042792,15.74714024,3403.7,3403.6,1e-08]
[1762615043324,6.90077355,3403.7,3403.6,1e-08]
[1762615043529,7.95325468,3403.7,3403.6,1e-08]
[1762615043684,6.90077355,3403.7,3403.6,1e-08]
[1762615044025,6.49526955,3403.7,3403.6,1e-08]
[1762615044234,6.47327833,3403.7,3403.6,1e-08]
[1762615044402,6.47127135,3403.7,3403.6,1e-08]
[1762615046499,6.5890353,3403.7,3403.6,1e-08]
[1762615048924,7.78325264,3403.7,3403.6,1e-08]
[1762615051026,6.9945393,3403.7,3403.6,1e-08]
[1762615056206,7.586111,3403.7,3403.6,1e-08]
[1762615056406,6.12192587,3403.7,3403.6,1e-08]
[1762615056611,7.1739152,3403.7,3403.6,1e-08]
[1762615057909,7.5794192,3403.7,3403.6,1e-08]
[1762615058114,8.10711325,3403.7,3403.6,1e-08]
[1762615059362,6.52742987,3403.7,3403.6,1e-08]
[1762615059678,6.98838024,3403.7,3403.6,1e-08]
[1762615061335,8.10746926,3403.7,3403.6,1e-08]
[1762615061535,6.52742987,3403.7,3403.6,1e-08]
[1762615061737,6.52742987,3403.7,3403.1,1e-08]
[1762615061945,6.15336123,3403.2,3403.1,1e-08]
[1762615062166,5.73059757,3403.2,3403.1,1e-08]
[1762615062483,6.21039757,3403.2,3403.1,1e-08]
[1762615063376,7.79099907,3403.2,3403.1,1e-08]
[1762615063939,6.51581235,3403.2,3403.1,1e-08]
[1762615064140,6.21039757,3403.2,3403.1,1e-08]
[1762615064347,3.3440876,3403.0,3402.9,0.001]
[1762615064562,7.29414095,3403.0,3402.9,0.001]
[1762615064778,6.19077027,3403.0,3402.9,0.001]
[1762615065378,2.93927458,3402.2,3401.5,0.1939]
[1762615065561,6.09852528,3402.2,3401.5,0.1939]
[1762615065877,5.62122528,3402.2,3401.5,0.1939]
[1762615066405,5.62122528,3402.2,3401.1,0.005]
[1762615066406,5.97985725,3402.2,3401.1,0.005]
[1762615066793,5.97985725,3402.2,3401.1,0.1989]
[1762615067897,4.19985077,3401.2,3401.1,0.005]
[1762615068404,4.83309193,3401.2,3401.1,0.1989]
[1762615068967,4.83309193,3401.2,3401.1,0.005]
[1762615069466,4.53947993,3401.2,3401.1,0.005]
[1762615069664,4.73337993,3401.2,3401.1,0.005]
[1762615069904,4.23637993,3401.2,3401.1,0.005]
[1762615070206,4.73337993,3401.2,3401.1,0.005]
[1762615070362,4.23637993,3401.2,3401.1,0.005]
[1762615071327,7.19022792,3401.2,3401.1,0.005]
[1762615071470,6.39859593,3401.2,3401.1,0.005]
[1762615071801,6.55233108,3401.2,3401.1,1e-08]
[1762615073076,6.55090303,3401.2,3401.1,1e-08]
[1762615074937,7.10557036,3401.2,3401.1,1e-08]
[1762615075150,5.02556388,3401.2,3401.1,0.19390001]
[1762615075433,3.76585188,3401.2,3401.1,0.24090001]
[1762615075808,6.64962459,3401.2,3401.1,1e-08]
[1762615076008,5.77502059,3401.2,3401.1,1e-08]
[1762615076209,5.02556388,3401.2,3401.1,0.19390001]
[1762615076617,5.02556388,3401.2,3401.1,0.38780001]
[1762615076618,4.83166388,3401.2,3401.1,0.38780001]
[1762615076824,4.19985077,3401.2,3401.1,0.38780001]
[1762615077357,4.83050608,3401.2,3401.1,0.19390001]
[1762615077852,5.29175938,3401.2,3401.1,0.19390001]
[1762615078559,4.66110407,3401.2,3401.1,0.19390001]
[1762615078739,5.29181213,3401.2,3401.1,0.19390001]
[1762615078908,5.29181213,3401.2,3401.1,1e-08]
[1762615080331,5.76091213,3401.2,3401.1,1e-08]
[1762615080936,6.25791213,3401.2,3401.1,1e-08]
[1762615081569,6.66341613,3401.2,3401.1,1e-08]
[1762615081843,7.45208665,3401.2,3401.1,1e-08]
[1762615082074,6.66341613,3401.2,3401.1,1e-08]
[1762615082460,7.86883325,3401.2,3401.1,1e-08]
[1762615082642,11.80611677,3401.2,3401.1,1e-08]
[1762615082840,4.60621947,3400.2,3400.1,0.005]
[1762615083071,5.91222753,3400.2,3400.1,0.005]
[1762615083270,6.39932753,3400.2,3400.1,0.005]
[1762615083440,6.59322753,3400.2,3400.1,0.005]
[1762615083640,7.382074,3400.2,3400.1,0.005]
[1762615084253,7.38145999,3400.2,3400.1,0.005]
[1762615084476,2.94186867,3399.2,3399.1,0.006]
[1762615084868,2.94186867,3399.2,3399.1,0.1999]
[1762615084869,4.20158067,3399.2,3399.1,0.1999]
[1762615085566,1.259712,3399.2,3399.1,0.3938]
[1762615085770,1.259712,3399.2,3399.1,0.1999]
[1762615085771,4.20158067,3399.2,3399.1,0.1999]
[1762615086277,1.259712,3399.2,3399.1,0.1999]
[1762615086578,4.20158067,3399.2,3399.1,0.3938]
[1762615086780,4.20158067,3399.2,3399.1,0.1999]
[1762615086982,4.20158067,3399.2,3399.1,0.006]
[1762615086983,5.42250553,3399.2,3399.1,0.006]
[1762615087187,6.31510953,3399.2,3399.1,0.006]
[1762615087485,7.73357275,3399.2,3399.1,1e-08]
[1762615088070,8.19516567,3399.2,3399.1,1e-08]
[1762615088269,7.73357275,3399.2,3399.1,1e-08]
[1762615089379,6.94534029,3399.2,3399.1,1e-08]
[1762615089864,6.94534029,3399.2,3398.7,0.001]
[1762615089865,3.83431889,3398.8,3398.7,1e-08]
[1762615090063,6.69669411,3398.8,3398.7,1e-08]
[1762615090266,7.18379411,3398.8,3398.7,1e-08]
[1762615090480,0.405504,3397.8,3397.0,0.1469]
[1762615090680,0.405504,3398.0,3397.0,0.1469]
[1762615090854,4.20306807,3397.5,3397.1,0.1949]
[1762615091055,1.259712,3397.2,3397.1,0.1949]
[1762615091388,4.20331261,3397.2,3397.1,0.1949]
[1762615091590,4.20331261,3397.2,3397.1,0.3898]
[1762615091884,4.20331261,3397.2,3397.1,0.1949]
[1762615092255,4.20324286,3397.3,3397.1,0.1949]
[1762615092589,2.94360061,3397.2,3397.1,0.1949]
[1762615092768,2.94352688,3397.3,3397.2,0.1949]
[1762615092971,4.20323888,3397.3,3397.2,0.1949]
[1762615094180,0.405504,3397.1,3396.1,0.1479]
[1762615094354,1.259712,3396.4,3396.1,0.1479]
[1762615094686,1.259712,3396.3,3396.1,0.1479]
[1762615094989,4.20409271,3396.3,3396.1,0.1479]
[1762615095293,2.94446734,3396.2,3396.1,0.1479]
[1762615095663,2.94446734,3396.2,3396.1,0.3428]
[1762615096097,1.259712,3396.2,3396.1,0.1949]
[1762615096296,4.20417934,3396.2,3396.1,0.3428]
[1762615096709,4.66607,3396.2,3396.1,0.3428]
[1762615096903,4.20432978,3396.1,3395.3,0.1949]
[1762615097205,0.82856459,3396.2,3394.8,0.047]
[1762615097206,2.94516767,3395.4,3394.8,0.047]
[1762615097405,0.405504,3396.1,3394.8,0.2419]
[1762615097566,2.9449149,3395.7,3395.3,0.1949]
[1762615097772,0.46190452,3396.5,3396.0,0.1949]
[1762615097974,0.46190452,3396.5,3394.8,0.2419]
[1762615097975,1.259712,3396.1,3394.8,0.2419]
[1762615098396,2.94489326,3395.8,3394.9,2.94554026]
[1762615098597,2.94443123,3396.3,3395.4,2.94509484]
[1762615098772,1.259712,3396.4,3394.8,3.50631463]
[1762615098773,1.259712,3396.0,3395.9,0.1949]
[1762615098974,2.94464075,3396.0,3395.9,0.1949]
[1762615099397,2.9450415,3395.6,3394.8,0.56067222]
[1762615099584,0.4866,3396.0,3394.9,3.14043791]
[1762615099793,2.94498763,3395.6,3395.5,0.1949]
[1762615099999,1.259712,3396.0,3395.0,0.1949]
[1762615100311,2.94500944,3395.6,3395.0,0.1949]
[1762615100500,0.4871,3395.9,3394.8,0.047]
[1762615100701,0.34958145,3396.2,3394.8,0.047]
[1762615100702,2.94540387,3395.2,3394.8,0.047]
[1762615101010,1.37246448,3396.1,3394.8,0.2419]
[1762615101314,1.259712,3395.8,3394.8,0.2419]
[1762615101484,2.94525834,3395.3,3394.8,0.2419]
[1762615102114,0.46915395,3395.7,3394.8,0.2419]
[1762615102315,1.746812,3395.6,3394.6,0.047]
[1762615102524,2.94529162,3395.3,3394.6,0.047]
[1762615102806,0.4871,3395.6,3394.6,0.047]
[1762615102807,2.94504145,3395.6,3395.2,0.1949]
[1762615103022,0.41661324,3395.6,3395.2,0.1949]
[1762615103200,1.259712,3395.7,3394.6,2.99283559]
[1762615103374,1.259712,3395.3,3394.6,0.047]
[1762615103572,0.405504,3395.4,3394.6,0.047]
[1762615103777,1.259712,3395.2,3394.6,0.047]
[1762615103988,1.259712,3395.2,3392.9,0.1479]
[1762615103989,0.405504,3394.6,3392.9,0.1479]
[1762615104187,4.1858424,3394.5,3393.3,2.94695986]
[1762615104388,1.259712,3394.3,3393.5,2.94674212]
[1762615104689,2.01245361,3394.5,3393.6,3.14156229]
[1762615104690,1.259712,3394.4,3393.6,3.14156229]
[1762615104886,2.94617732,3394.3,3393.6,0.1949]
[1762615105087,3.69868836,3394.5,3393.6,0.1949]
[1762615105325,2.94629152,3394.1,3392.9,0.1479]
[1762615105529,0.33066422,3394.4,3393.3,0.1949]
[1762615105727,1.259712,3394.3,3394.0,0.1949]
[1762615105891,3.27671589,3394.4,3393.2,0.1949]
[1762615105892,0.81776422,3394.4,3393.2,0.1949]
[1762615106092,2.94644849,3394.0,3393.2,0.1949]
[1762615106313,0.33066422,3394.4,3393.2,0.1949]
[1762615106525,2.94669903,3393.7,3393.0,0.001]
[1762615106725,2.94657975,3393.8,3393.0,0.001]
[1762615106932,2.94699791,3393.3,3393.0,0.001]
[1762615107104,2.94704283,3393.3,3393.0,0.001]
[1762615107431,2.94713419,3393.2,3393.0,0.001]
[1762615107636,3.43375746,3393.1,3393.0,0.001]
[1762615107793,4.69346946,3393.1,3393.0,0.001]
[1762615108000,1.746312,3393.1,3393.0,0.001]
[1762615108198,5.58607346,3393.1,3393.0,0.001]
[1762615108392,3.35300893,3392.7,3392.6,0.001]
[1762615108731,1.259712,3392.7,3392.6,0.001]
[1762615109130,1.259712,3392.7,3392.6,0.1969]
[1762615109429,1.259712,3393.6,3392.6,0.3928]
[1762615109629,2.94678434,3393.6,3392.6,0.3928]
[1762615109933,3.3520591,3393.8,3392.7,0.1959]
[1762615109934,0.1969,3393.8,3392.7,0.1959]
[1762615110116,0.1969,3393.8,3392.8,2.94741806]
[1762615110316,0.1969,3393.8,3392.7,0.1959]
[1762615110627,6.85881889,3394.2,3393.2,2.94700967]
[1762615110806,2.94621746,3394.2,3393.2,2.94700967]
[1762615111008,0.60881478,3394.1,3393.3,2.94691123]
[1762615111207,0.60881478,3394.1,3393.2,2.94704873]
[1762615111407,0.60881478,3394.1,3392.6,0.1969]
[1762615111610,0.46223694,3394.2,3392.9,2.94730035]
[1762615111611,3.40849451,3394.2,3392.9,2.94730035]
[1762615111811,0.405504,3394.1,3392.7,0.1959]
[1762615112126,4.61152133,3394.1,3393.1,2.94710057]
[1762615112332,1.259712,3393.9,3393.1,2.94710057]
[1762615112543,1.259712,3393.9,3393.2,2.94705623]
[1762615112834,1.72194894,3394.2,3393.5,2.94675237]
[1762615113036,0.46223694,3394.2,3393.6,2.9467226]
[1762615113199,3.60809686,3394.7,3393.1,2.94715746]
[1762615113402,0.65536924,3394.6,3393.8,2.94648639]
[1762615113626,0.65536924,3394.6,3393.2,3.75200452]
[1762615113627,2.94603653,3394.4,3393.5,2.94674999]
[1762615113835,0.65536924,3394.6,3393.9,2.94644961]
[1762615114034,0.65536924,3394.6,3393.5,0.1959]
[1762615114198,0.65536924,3394.6,3393.9,2.9463946]
[1762615114401,1.259712,3394.4,3393.5,3.14268154]
[1762615114611,2.94609215,3394.4,3393.5,0.1959]
[1762615114814,1.259712,3394.3,3393.5,0.1959]
[1762615115133,0.1987,3395.0,3393.5,0.1959]
[1762615115346,0.1987,3395.0,3394.5,0.047]
[1762615115347,2.94566218,3394.9,3394.5,0.047]
[1762615115510,0.1987,3395.0,3393.4,0.047]
[1762615115511,0.31443622,3394.8,3393.4,0.047]
[1762615116037,0.31443622,3394.8,3393.5,0.2253681]
[1762615116236,1.259712,3394.6,3393.5,0.1959]
[1762615116597,0.1987,3395.0,3394.3,2.94603721]
[1762615116799,0.46213862,3395.2,3393.8,2.94654959]
[1762615116800,2.945483,3395.1,3393.8,2.94654959]
[1762615117004,1.259712,3395.0,3393.9,0.1959]
[1762615117204,0.46213862,3395.2,3393.9,0.1959]
[1762615117205,0.46213862,3395.2,3393.9,3.14233649]
[1762615117558,2.94486278,3395.8,3395.1,0.1959]
[1762615117730,0.66079098,3396.0,3395.1,0.1959]
[1762615117731,0.1472,3395.3,3395.1,0.1959]
[1762615118434,3.09247872,3395.3,3394.4,2.94602519]
[1762615118614,0.1472,3395.1,3394.6,2.94582201]
[1762615118806,0.1472,3395.1,3394.6,2.9457941]
[1762615118999,0.30924676,3395.1,3394.5,2.94593851]
[1762615119199,0.4636,3395.5,3394.2,0.02946202]
[1762615119412,3.40868191,3395.5,3394.7,2.94569345]
[1762615119617,2.94508191,3395.5,3394.7,2.94569345]
[1762615120035,2.94525381,3395.3,3394.6,2.94580127]
[1762615120247,1.259712,3395.4,3391.3,0.8854089]
[1762615120248,0.4636,3395.4,3394.0,0.51013365]
[1762615120544,2.9457517,3394.8,3394.0,0.1959]
[1762615121051,0.4636,3395.3,3394.7,0.1959]
[1762615121257,1.259712,3395.2,3394.7,0.1959]
[1762615121408,1.259712,3395.5,3394.7,0.1959]
[1762615121738,2.94524784,3395.3,3394.6,2.94584141]
[1762615121930,1.259712,3395.2,3394.6,2.94584141]
[1762615122239,1.259712,3395.3,3394.6,0.60877701]
[1762615122402,1.259712,3395.3,3395.1,0.1959]
[1762615122606,2.94518502,3395.4,3395.1,0.1959]
[1762615122607,1.259712,3395.4,3395.1,0.1959]
[1762615122946,0.92563069,3395.9,3395.1,0.1959]
[1762615123105,1.259712,3395.6,3395.1,0.1959]
[1762615123305,2.94501493,3395.6,3395.1,0.1959]
[1762615123501,2.94491864,3395.7,3395.1,0.1959]
[1762615123739,0.46203069,3395.9,3395.2,0.1959]
[1762615123944,0.63079352,3396.3,3395.8,0.1959]
[1762615124144,2.9446902,3396.0,3395.2,3.14122518]
[1762615124447,1.46640346,3396.4,3395.4,2.94511021]
[1762615124633,1.31106048,3396.4,3395.3,3.14111247]
[1762615124961,1.259712,3395.9,3395.3,3.14111172]
[1762615125137,1.259712,3396.1,3395.4,2.9451111]
[1762615125337,0.63118632,3396.0,3395.4,2.94512917]
[1762615125543,0.002,3395.7,3395.3,3.14112758]
[1762615126247,0.002,3395.7,3395.6,0.1959]
[1762615126442,0.002,3395.7,3394.9,0.1959]
[1762615126644,0.002,3395.7,3395.3,2.94519616]
[1762615127266,0.002,3395.7,3395.4,2.94514756]
[1762615127956,0.002,3395.7,3395.1,2.94540972]
[1762615128160,2.9469243,3395.7,3395.0,3.14139661]
[1762615128461,2.94527572,3395.3,3394.6,2.94579463]
[1762615128761,2.94526832,3395.3,3394.6,2.94578132]
[1762615128957,0.1472,3395.2,3394.7,2.9457074]
[1762615129155,2.94542156,3395.1,3394.6,0.1472]
[1762615130774,1.259712,3395.2,3394.0,2.94629983]
[1762615131063,2.9457894,3394.7,3394.1,0.60886763]
[1762615131237,3.0929894,3394.7,3394.1,3.09346593]
[1762615131434,2.94585937,3394.6,3394.1,0.1472]
[1762615131663,0.1472,3394.7,3393.1,0.1959]
[1762615131664,2.94605258,3394.4,3393.1,0.1959]
[1762615131863,0.1472,3394.1,3393.5,3.09393995]
[1762615132156,0.1472,3394.1,3393.8,2.9464793]
[1762615132356,0.1472,3394.1,3394.0,0.1959]
[1762615132973,0.1472,3394.1,3393.5,0.1472]
[1762615132974,0.6419,3394.1,3393.5,0.1472]
[1762615133155,2.9465291,3393.9,3393.0,0.001]
[1762615133373,0.1472,3393.9,3393.3,0.1472]
[1762615133685,2.94668991,3393.7,3393.0,0.001]
[1762615133847,0.1472,3393.6,3393.1,2.94715615]
[1762615134269,0.1472,3393.6,3393.0,0.1482]
[1762615134491,3.09400033,3393.6,3393.0,0.1482]
[1762615134693,0.1472,3393.6,3393.0,3.09543335]
[1762615134851,0.1472,3393.6,3393.1,2.94715746]
[1762615135256,0.1472,3393.6,3393.1,2.94709841]
[1762615135753,0.1472,3393.6,3393.2,2.94706562]
[1762615135954,0.1472,3393.7,3393.5,3.14265417]
[1762615136182,0.1472,3393.7,3393.5,2.94675417]
[1762615136383,0.1472,3393.7,3393.6,0.1959]
[1762615136584,0.1472,3393.7,3393.2,0.80015068]
[1762615136778,0.1472,3393.7,3393.1,3.09429864]
[1762615136981,0.1472,3393.7,3393.2,2.94705962]
[1762615137163,0.1472,3393.7,3393.1,0.1472]
[1762615137164,0.1472,3393.7,3393.3,2.94696918]
[1762615137488,0.1472,3393.7,3393.4,2.94689607]
[1762615137870,0.1472,3393.7,3393.1,3.09429094]
[1762615138073,0.1472,3393.7,3393.1,0.75145478]
[1762615138569,0.1472,3393.7,3393.1,3.69856178]
[1762615138867,0.1472,3393.7,3393.6,0.1959]
[1762615139272,0.1472,3393.7,3393.1,0.1472]
[1762615139465,2.94688938,3393.5,3393.1,0.1472]
[1762615139670,2.94707061,3393.2,3393.1,0.1472]
[1762615140008,0.1472,3393.1,3393.0,0.001]
[1762615140210,4.08265746,3393.1,3393.0,0.001]
[1762615140559,1.259712,3393.3,3393.0,0.001]
[1762615140758,0.50062861,3393.3,3393.0,0.001]
[1762615140994,2.94704965,3393.3,3393.0,0.001]
[1762615141195,0.3061612,3393.6,3393.0,0.001]
[1762615141368,3.43475746,3393.1,3393.0,0.001]
[1762615141571,5.32615357,3393.1,3393.0,0.001]
[1762615141777,5.16406946,3393.1,3393.0,0.001]
[1762615142417,1.259712,3393.1,3393.0,0.001]
[1762615142702,1.259712,3393.4,3393.0,0.001]
[1762615142863,0.1472,3393.4,3393.0,3.14414384]
[1762615143202,0.1472,3394.0,3393.3,0.3431]
[1762615143498,3.09361659,3394.0,3393.3,0.3431]
[1762615143665,1.406912,3394.0,3393.3,0.3431]
[1762615143865,1.406912,3394.0,3393.4,2.94689691]
[1762615144110,1.259712,3393.8,3393.3,0.3431]
[1762615144326,0.1472,3393.6,3393.0,0.1482]
[1762615144867,5.09997346,3393.1,3393.0,0.001]
[1762615145171,6.20081113,3393.1,3393.0,0.001]
[1762615145366,1.89094967,3393.1,3393.0,0.001]
[1762615145567,1.259712,3393.1,3393.0,0.001]
[1762615145907,1.259712,3393.1,3393.0,0.1969]
[1762615146108,0.1955,3393.9,3393.0,0.3928]
[1762615146402,0.1955,3393.9,3393.2,2.94706705]
[1762615146700,2.94657417,3393.8,3393.1,2.94714063]
[1762615146903,2.94687168,3393.5,3393.0,0.001]
[1762615147091,2.94678447,3393.6,3393.0,0.001]
[1762615147281,2.94687382,3393.5,3393.0,0.001]
[1762615147487,2.94673887,3393.6,3393.0,0.001]
[1762615148008,2.94682357,3393.5,3393.0,0.001]
[1762615148179,2.94673501,3393.6,3393.0,0.001]
[1762615148384,1.259712,3393.8,3393.0,0.001]
[1762615148601,0.1955,3393.9,3393.0,0.001]
[1762615148902,0.1955,3393.9,3393.0,0.31542225]
[1762615149144,7.90848929,3394.8,3394.0,2.94634834]
[1762615149145,2.94570107,3394.8,3394.0,2.94634834]
[1762615149356,2.94586301,3394.6,3393.9,0.1959]
[1762615149661,0.6523,3394.9,3393.9,0.1959]
[1762615149828,0.6523,3394.9,3394.0,2.94636382]
[1762615150024,0.6523,3394.9,3393.9,3.14233624]
[1762615150209,1.912012,3394.9,3394.0,2.94637433]
[1762615150521,2.94614095,3394.3,3393.0,0.1969]
[1762615150710,2.94608551,3394.4,3393.6,2.94671487]
[1762615150909,0.4696,3394.8,3393.0,0.1969]
[1762615150910,2.94569657,3394.8,3394.0,2.9463687]
[1762615151238,0.1827,3394.9,3393.1,1.259712]
[1762615151411,0.1827,3394.9,3393.5,2.94679363]
[1762615151607,1.259712,3394.8,3394.2,2.94619281]
[1762615152013,0.002,3395.1,3394.7,0.1959]
[1762615152314,0.002,3395.1,3395.0,3.1414081]
[1762615152506,0.002,3395.1,3395.0,0.1959]
[1762615154711,0.002,3395.1,3395.0,3.3373081]
[1762615154912,0.002,3395.1,3395.0,4.11279947]
[1762615155539,0.002,3395.1,3395.0,0.97139137]
[1762615155740,0.002,3395.1,3395.0,3.4845081]
[1762615156736,0.002,3395.1,3395.0,3.8900121]
[1762615157839,0.002,3395.1,3395.0,0.3431]
[1762615158039,0.002,3395.1,3395.0,3.2886081]
[1762615158347,0.002,3395.1,3395.0,3.4845081]
[1762615158546,0.002,3395.1,3395.0,1.182012]
[1762615158737,0.002,3395.1,3395.0,3.9316201]
[1762615159354,0.002,3395.1,3395.0,4.1275201]
[1762615162663,0.002,3395.1,3395.0,3.9316201]
[1762615163063,0.002,3395.1,3395.0,0.986112]
[1762615163265,0.002,3395.1,3395.0,3.2886081]
[1762615163470,0.002,3395.1,3395.0,0.3431]
[1762615163798,0.002,3395.1,3395.0,0.1472]
[1762615165078,0.002,3395.1,3395.0,3.4845081]
[1762615165287,0.002,3395.1,3395.0,4.12752488]
[1762615166340,0.002,3395.1,3395.0,7.91752488]
[1762615166742,0.002,3395.1,3395.0,7.72162488]
[1762615166940,0.002,3395.1,3395.0,4.1331]
[1762615167989,0.002,3395.1,3395.0,3.9372]
[1762615169104,0.002,3395.1,3395.0,6.9314081]